Cogmind - Beta 16.1 @@@ ROGUE MODE // 2026.04.13 @ 18:02:08 Player: Krysmphoenix Result: Destroyed by P-60 Hacker with Shock Rifle Performance ------------- Evolutions (4) 2000 Regions Visited (7) 1400 Robots Destroyed (22) 110 Value Destroyed (775) 775 Prototype IDs (8) 160 Alien Tech Used (0) 0 Bonus (1190) 1190 TOTAL SCORE: 5635 Bonus ------- Follower Combat Kills 590 Met Imprinter 300 Was Imprinted 300 Cogmind --------- Core Integrity 0/850 Matter 300/300 Energy 82/100 System Corruption 1% Temperature Cool (0) Movement Core (100) Ox1 Location -6/Factory Parts ------- > --- POWER (2) -------- (None) > --- PROPULSION (4) --- (None) > --- UTILITY (6) ------ Advanced Signal Interpreter Core Analyzer Core Analyzer Makeshift Transmission Jammer > --- WEAPON (3) ------- (None) > --- INVENTORY (5) ---- Antimatter Reactor Wheel Weapon Cycler Heavy Ion Cannon Peak State ------------ > --- POWER ------------ Makeshift Power Source Antimatter Reactor > --- PROPULSION ------- Airjet Gravmag System Gravmag System > --- UTILITY ---------- 0b10 Decoder Chip [Looter] 0b10 Decoder Chip [Scout] Makeshift Transmission Jammer Experimental Thermal Shield Improved Shield Generator Experimental Hacking Suite > --- WEAPON ----------- Remote Datajack Power Maul > --- INVENTORY -------- Phase Shifter [Rating: 66] Favorites ----------- Power Makeshift Power Source Engine Makeshift Power Source Power Core Micro Nuclear Core Reactor Antimatter Reactor Propulsion Airjet Wheel Wheel Hover Unit Airjet Flight Unit Flight Unit Utility Experimental Hacking Suite Device Improved Heat Sink Processor 0b10 Decoder Chip [Looter] Hackware Experimental Hacking Suite Weapon Power Maul Energy Gun Medium Laser Ballistic Gun Light Assault Rifle Special Weapon Remote Datajack Impact Weapon Power Maul Slashing Weapon Mining Claw Special Melee Weapon Datajack Build | -11 -10 -10 -9 -9 -7 -6 -6 ------- Run | Yrd Mat Min Mat Min Zio Pro Fac Slots Evolved 8 | . . . 2 . . . 6 Power 1 | . . . 1 . . . . Propulsion 2 | . . . 1 . . . 1 Utility 4 | . . . . . . . 4 Weapon 1 | . . . . . . . 1 Parts Attached 57 | 5 5 4 15 . 11 5 12 Power 11 | 1 1 1 1 . 2 2 3 Engine 6 | 1 1 1 1 . 1 . 1 Core 4 | . . . . . 1 1 2 Reactor 1 | . . . . . . 1 . Propulsion 14 | 2 2 1 7 . . 2 . Treads . | . . . . . . . . Leg . | . . . . . . . . Wheel 2 | 2 . . . . . . . Hover 6 | . . . 4 . . 2 . Flight 6 | . 2 1 3 . . . . Utility 21 | . 2 . 3 . 8 . 8 Device 8 | . 2 . . . 2 . 4 Storage . | . . . . . . . . Processor 12 | . . . 3 . 5 . 4 Hackware 1 | . . . . . 1 . . Protection . | . . . . . . . . Artifact . | . . . . . . . . Weapon 11 | 2 . 2 4 . 1 1 1 Energy Gun 4 | 2 . . 1 . . . 1 Energy Cannon . | . . . . . . . . Ballistic Gun 1 | . . 1 . . . . . Ballistic Cannon . | . . . . . . . . Launcher . | . . . . . . . . Special Weapon 1 | . . . . . . 1 . Impact Weapon 3 | . . . 2 . 1 . . Slashing Weapon 1 | . . . 1 . . . . Piercing Weapon . | . . . . . . . . Special Melee Weapon 1 | . . 1 . . . . . Unidentified Prototypes 8 | . . . 1 . 6 . 1 Parts Lost 24 | . 1 . 9 . . . 14 Power 5 | . . . 1 . . . 4 Propulsion 7 | . 1 . 3 . . . 3 Utility 8 | . . . 3 . . . 5 Weapon 4 | . . . 2 . . . 2 Highest Loss Streak 9 | . 1 . 5 . . . 9 To Critical Strikes 1 | . . . . . . . 1 Average Backups 3 | 1 2 4 3 2 4 4 2 Power . | . . . . . . . . Propulsion . | . . 3 . . . . . Utility 2 | . . . . . 3 4 1 Weapon . | . 1 1 1 2 . . . Tool/Special . | . . . . . . . . Unused Backups 12 | 1 2 . . . 1 7 1 Power . | . . . . . . . . Propulsion . | . . . . . . . . Utility 9 | . 1 . . . 1 7 . Weapon 3 | 1 1 . . . . . 1 Tool/Special . | . . . . . . . . Average Slot Usage (%) 93 | . 90 90 87 100 99 100 81 Engine 13 | . 14 14 16 22 19 11 7 Core 2 | . . . . . 2 6 1 Reactor 2 | . . . . . . 4 2 Wheel 1 | . 24 . . . . . . Hover 23 | . . . 6 33 33 33 19 Flight 4 | . 3 28 24 . . . . Device 7 | . 20 26 4 11 7 . 17 Processor 10 | . . . 14 11 9 11 13 Hackware 5 | . . . . . 4 11 5 Energy Gun 2 | . 28 10 2 . . . . Ballistic Gun 1 | . . 4 6 . . . . Special Weapon 4 | . . . . . . 8 5 Impact Weapon 12 | . . . 10 22 22 13 5 Peak Build Rating 66 | 5 9 9 21 21 40 46 66 Average Rating 34 | 2 7 8 13 21 29 43 57 On Entrance 18 | . 5 8 9 21 21 40 45 Avg Prop Armor Cover (%) 20 | . . . . . . 20 23 Naked Turns . | . . . . . . . . Heaviest Build 36 | 6 9 8 17 17 22 26 36 Greatest Support 26 | 20 20 8 24 24 24 26 26 Greatest Overweight (x) 8 | . . . 1 . . 8 4 Average Overweight (x) . | . . . . . . . . Largest Inventory Capacity 5 | 5 5 5 5 5 5 5 5 Average Capacity 5 | 5 5 5 5 5 5 5 5 Most Carried 5 | 5 5 5 5 2 5 5 5 Average Carried 3 | 1 2 4 3 2 4 4 2 Final Capacity 5 | 5 5 5 5 5 5 5 5 Final Carried 5 | . 5 5 2 2 5 5 4 Class Distribution -------------------- 42% | Scavenger-Mutant 42% | Mutant 15% | Derelict-Mutant Dominant Class ---------------- Mutant | -10/Materials Mutant | -10/Mines Scavenger-Mutant | -9/Materials Mutant | -9/Mines Mutant | -7/Zion Scavenger-Mutant | -6/Proximity Caves Derelict-Mutant | -6/Factory Resources | -11 -10 -10 -9 -9 -7 -6 -6 ----------- Run | Yrd Mat Min Mat Min Zio Pro Fac Matter Collected 876 | 144 151 47 224 . 130 60 120 Remotely . | . . . . . . . . Salvage Created 763 | . 122 25 407 . . . 209 Parts 28 | . 7 3 17 . . . 1 Haulers Intercepted . | . . . . . . . . Recyclers Shooed . | . . . . . . . . Parts Field Recycled . | . . . . . . . . Retrieved Matter . | . . . . . . . . Parts Self-Destructed 21 | . . . . . 3 18 . Prevented 2 | . . . . . . 2 . Parts Restored . | . . . . . . . . Kills | -11 -10 -10 -9 -9 -7 -6 -6 ------- Run | Yrd Mat Min Mat Min Zio Pro Fac Combat Hostiles Destroyed 19 | . 5 2 8 . . . 4 Melee 4 | . . . 4 . . . . Guns 9 | . 5 2 2 . . . . Classes Destroyed 9 | . 2 . 5 . . . 2 Tunneler 1 | . . . 1 . . . . Recycler 1 | . . . 1 . . . . Watcher 1 | . . . 1 . . . . Swarmer 5 | . 3 2 . . . . . Grunt 6 | . 2 . 4 . . . . Brawler 1 | . . . 1 . . . . Duelist 1 | . . . . . . . 1 Sentry 3 | . . . 3 . . . . Hunter 3 | . . . . . . . 3 Best Kill Streak 6 | . 3 2 6 . . . 2 Combat Bots Only 3 | . 3 2 2 . . . 2 Max Kills in Single Turn 1 | . 1 1 1 . . . 1 Gunslinging . | . . . . . . . . Exploded . | . . . . . . . . Melee 1 | . . . 1 . . . . Uniques/NPCs Destroyed . | . . . . . . . . Combat | -11 -10 -10 -9 -9 -7 -6 -6 -------- Run | Yrd Mat Min Mat Min Zio Pro Fac Hostile Shots Fired 211 | . 33 4 48 . . . 126 Missed 66 | . 11 3 17 . . . 35 Hits 145 | . 22 1 31 . . . 91 Melee 8 | . . . 5 . . . 3 Projectile 137 | . 22 1 26 . . . 88 AOE 1 | . . . . . . . 1 Critical Strikes 7 | . . . 3 . . . 4 Damage Taken 2318 | . 247 10 457 . . 20 1584 Core 1006 | . 44 10 96 . . . 856 Absorbed by Shields 92 | . . . . . . . 92 Regen/Repaired (Parts) 108 | . . . . . 108 . . Core Remaining (%) 84 | 100 . 78 . . . 76 . Volleys Fired 50 | . 13 4 28 . . 2 3 Largest 2 | . 2 1 1 . . 1 1 Hottest 90 | . 90 50 56 . . 5 5 Shots Fired 63 | . 26 4 28 . . 2 3 Gun 58 | . 26 4 28 . . . . Cannon . | . . . . . . . . Launcher . | . . . . . . . . Special 5 | . . . . . . 2 3 Kinetic 27 | . . . 27 . . . . Thermal 31 | . 26 4 1 . . . . Explosive . | . . . . . . . . Electromagnetic . | . . . . . . . . Robot Hit Streak 8 | . 8 3 6 . . . 1 Robot Miss Streak 5 | . 4 1 3 . . 5 1 Penetration Max . | . . . . . . . . Secondary Targets . | . . . . . . . . Shots Hit Robots 70 | . 16 3 38 . . . 13 Core Hits 23 | . 8 2 12 . . . 1 Critical Kills 2 | . . . 2 . . . . Critical Parts Destroyed 7 | . . . 4 . . . 3 Critical Strikes 11 | . 2 . 6 . . . 3 Burn 2 | . 2 . . . . . . Smash 9 | . . . 6 . . . 3 Melee Attacks 35 | . . . 23 . . . 12 Impact 35 | . . . 23 . . . 12 Slashing . | . . . . . . . . Piercing . | . . . . . . . . Sneak Attacks 3 | . . . 3 . . . . Combat Hostiles . | . . . . . . . . Follow-up Attacks 2 | . . . 2 . . . . Damage Inflicted 2019 | . 191 38 1244 . . . 546 Guns 380 | . 191 38 151 . . . . Cannons . | . . . . . . . . Explosions . | . . . . . . . . Melee 1634 | . . . 1093 . . . 541 Ramming 5 | . . . . . . . 5 Kinetic 151 | . . . 151 . . . . Thermal 229 | . 191 38 . . . . . Explosive . | . . . . . . . . Electromagnetic . | . . . . . . . . Impact 1634 | . . . 1093 . . . 541 Slashing . | . . . . . . . . Piercing . | . . . . . . . . Highest Corruption 15 | . . . 15 15 15 . 1 Average Corruption 12 | . . . 12 15 15 . 1 Corruption Purged . | . . . . . . . . Corruption Blocked . | . . . . . . . . Effects 23 | . . . 21 . 2 . . Message Errors 6 | . . . 6 . . . . Matter Fused 4 | . . . 4 . . . . Heat Flow Errors 2 | . . . 1 . 1 . . Energy Discharges 5 | . . . 5 . . . . Parts Rejected 1 | . . . 1 . . . . Data Loss (minor) 4 | . . . 4 . . . . Alerts 1 | . . . . . 1 . . Overload Shots . | . . . . . . . . Overflow Damage 543 | . . . 344 . . . 199 Projectiles . | . . . . . . . . Explosions . | . . . . . . . . Melee 543 | . . . 344 . . . 199 Knockbacks 8 | . . . 2 . . . 6 Impact 8 | . . . 2 . . . 6 Kinetic . | . . . . . . . . Secondary . | . . . . . . . . Self-Inflicted Damage 2 | . . . . . . . 2 Shots . | . . . . . . . . Rammed 2 | . . . . . . . 2 Targets Rammed 2 | . . . . . . . 2 Kicked . | . . . . . . . . Crushed . | . . . . . . . . Highest Temperature 320 | . 306 . 186 . 320 1 . Average Temperature 95 | . 137 . 35 . 145 1 . Received Heat Transfer 336 | . 96 . 204 . . 9 27 Siege Activations . | . . . . . . . . Martial Activations . | . . . . . . . . Shielding Activations . | . . . . . . . . Robots Disrupted . | . . . . . . . . Combat Hostiles . | . . . . . . . . Robots Corrupted 8 | . . . 4 . . . 4 Combat Hostiles 6 | . . . 2 . . . 4 Parts Fried 15 | . . . 6 . . . 9 Impact Corruptions 20 | . . . 11 . . . 9 Robots Melted . | . . . . . . . . Combat Hostiles . | . . . . . . . . Parts Melted 3 | . 3 . . . . . . Heat Transferred 767 | . 656 111 . . . . . Parts Sabotaged . | . . . . . . . . Parts Stolen . | . . . . . . . . Parts Stripped . | . . . . . . . . Power Chain Reactions . | . . . . . . . . Alert | -11 -10 -10 -9 -9 -7 -6 -6 ------- Run | Yrd Mat Min Mat Min Zio Pro Fac Maximum Alert Level . | . . . . . . . . Low Security (%) 100 | 100 100 100 100 100 . . 100 Level 1 . | . . . . . . . . Level 2 . | . . . . . . . . Level 3 . | . . . . . . . . Level 4 . | . . . . . . . . Level 5 . | . . . . . . . . High Security . | . . . . . . . . Max Security . | . . . . . . . . Peak Influence 195 | . 55 40 125 32 . . 195 Initial 32 | . . 17 3 32 . . . Average 56 | . 17 17 57 32 . . 80 Influence Increases 1536 | . 135 40 368 . . 477 516 Destroy 0b10 Robot/C 740 | . 100 40 160 . . 240 200 Destroy 0b10 Robot/NC 65 | . . . 15 . . 10 40 Destroy Leader 146 | . 20 . 42 . . 20 64 Allied During Kill 235 | . . . . . . 192 43 Successful Hack 1 | . . . 1 . . . . Disable Machine 90 | . . . . . . . 90 Destroy Structure 34 | . . . . . . . 34 Partial Spotted 60 | . . . 45 . . . 15 Lose Combat Pursuer 165 | . 15 . 105 . . 15 30 Influence Decreases 1471 | . 90 75 294 52 32 477 451 Entered New Map 119 | . . 28 7 52 32 . . Time Decay 1020 | . 70 47 225 . . 437 241 Lost Part 205 | . 10 . 55 . . . 140 Lost Ally 127 | . 10 . 7 . . 40 70 Squads Dispatched 8 | . 1 . 2 . . 1 4 Investigation . | . . . . . . . . Extermination 2 | . . . . . . . 2 Reinforcement 5 | . 1 . 2 . . . 2 Assault 1 | . . . . . . 1 . Garrison . | . . . . . . . . Intercept . | . . . . . . . . Searches Triggered . | . . . . . . . . Construction Impeded 1 | . . . . . . . 1 Haulers Reinforced . | . . . . . . . . Active Scanning Responses . | . . . . . . . . Cargo Convoy Interrupts . | . . . . . . . . Stealth | -11 -10 -10 -9 -9 -7 -6 -6 --------- Run | Yrd Mat Min Mat Min Zio Pro Fac Distress Signals 3 | . 1 . 1 . . . 1 Communications Jammed . | . . . . . . . . Distress Signals . | . . . . . . . . Times Spotted 70 | . 11 3 27 . . 13 16 Peak Tracking Total 8 | . 4 3 8 . . 5 4 Tactical Retreats 10 | . 4 . 4 . . 1 1 ECM-based Alert Blocks 7 | . 5 . 2 . . . . Traps | -11 -10 -10 -9 -9 -7 -6 -6 ------- Run | Yrd Mat Min Mat Min Zio Pro Fac Traps Triggered . | . . . . . . . . Indirectly . | . . . . . . . . Trap Hack Attempts . | . . . . . . . . Triggered . | . . . . . . . . Disarmed . | . . . . . . . . Reprogrammed . | . . . . . . . . Reused . | . . . . . . . . Traps Extracted . | . . . . . . . . Installed . | . . . . . . . . Triggered . | . . . . . . . . Machines | -11 -10 -10 -9 -9 -7 -6 -6 ---------- Run | Yrd Mat Min Mat Min Zio Pro Fac Machines Disabled 7 | . . . . . . 1 6 Max in Single Turn . | . . . . . . . . Machines Repaired . | . . . . . . . . Machines Dismantled . | . . . . . . . . Machines Sabotaged . | . . . . . . . . Overloaded Fab Kills . | . . . . . . . . Hacking | -11 -10 -10 -9 -9 -7 -6 -6 --------- Run | Yrd Mat Min Mat Min Zio Pro Fac Machines Accessed 6 | . 1 . 3 . 1 . 1 Terminals 4 | . 1 . 2 . . . 1 Fabricators . | . . . . . . . . Repair Stations . | . . . . . . . . Recycling Units . | . . . . . . . . Scanalyzers 1 | . . . 1 . . . . Garrison Access . | . . . . . . . . Total Hacks 22 | . 3 . 14 . 3 . 2 Successful 14 | . 2 . 8 . 3 . 1 Failed 7 | . 1 . 5 . . . 1 Catastrophic 1 | . . . 1 . . . . Database Lockouts 1 | . . . 1 . . . . Manual 29 | . 3 . 6 . 10 . 10 Terminals 10 | . 3 . 5 . . . 2 Fabricators . | . . . . . . . . Repair Stations . | . . . . . . . . Recycling Units . | . . . . . . . . Scanalyzers 9 | . . . 9 . . . . Garrison Access . | . . . . . . . . Terminal Hacks 4 | . . . . . 3 . 1 Part Schematic 3 | . . . . . 3 . . Open DSF 1 | . . . . . . . 1 Fabricator Hacks . | . . . . . . . . Repair Station Hacks . | . . . . . . . . Recycling Unit Hacks . | . . . . . . . . Scanalyzer 6 | . . . 6 . . . . Insert Component 1 | . . . 1 . . . . Analyze 2 | . . . 2 . . . . Retrieve Study 3 | . . . 3 . . . . Garrison Access Hacks . | . . . . . . . . Unauthorized Hacks 4 | . 2 . 2 . . . . Terminals 4 | . 2 . 2 . . . . Assimilate 2 | . 1 . 1 . . . . Botnet 2 | . 1 . 1 . . . . Fabricators . | . . . . . . . . Repair Stations . | . . . . . . . . Recycling Units . | . . . . . . . . Scanalyzers . | . . . . . . . . Garrison Access . | . . . . . . . . Data Cores Recovered . | . . . . . . . . Used . | . . . . . . . . Hacking Detections 6 | . 1 . 2 . . . 3 Full Trace Events . | . . . . . . . . Feedback Events . | . . . . . . . . Feedback Blocked . | . . . . . . . . Robot Schematics Acquired 3 | . . . . . 3 . . Robots Built . | . . . . . . . . Authchips . | . . . . . . . . Time . | . . . . . . . . Total Robot Build Rating . | . . . . . . . . Part Schematics Acquired 19 | . . . 1 . 18 . . Parts Built . | . . . . . . . . Authchips . | . . . . . . . . Time . | . . . . . . . . Total Part Build Rating . | . . . . . . . . Part Studies Acquired 2 | . . . 2 . . . . Parts Repaired . | . . . . . . . . Time . | . . . . . . . . Parts Recycled . | . . . . . . . . Recycled Matter . | . . . . . . . . Retrieved Matter . | . . . . . . . . Retrieved Components . | . . . . . . . . Parts Scanalyzed 1 | . . . 1 . . . . Part Schematics Acquired 1 | . . . 1 . . . . Parts Damaged . | . . . . . . . . Bothacking | -11 -10 -10 -9 -9 -7 -6 -6 ------------ Run | Yrd Mat Min Mat Min Zio Pro Fac Used RIF Installer . | . . . . . . . . Robots Hacked 2 | . . . . . . . 2 Non-combat 1 | . . . . . . . 1 Combat . | . . . . . . . . Robot Hacks Applied 1 | . . . . . . . 1 no_distress 1 | . . . . . . . 1 Manual 1 | . . . . . . . 1 Relay Couplers Released . | . . . . . . . . Fabnet Peak Effective % . | . . . . . . . . Robots Rewired 1 | . . . . . . 1 . Allies Hacked . | . . . . . . . . Hacks Repelled . | . . . . . . . . Allies | -11 -10 -10 -9 -9 -7 -6 -6 -------- Run | Yrd Mat Min Mat Min Zio Pro Fac Total Allies 13 | . 1 . 1 . 9 1 1 Largest Group 9 | . 1 . 1 . 9 9 7 Highest-Rated Group 444 | . 10 . 10 . 444 441 239 Highest-Rated Ally 96 | . 10 . 10 . 96 96 85 Total Orders . | . . . . . . . . Ally Attacks 131 | . . . . . . 87 44 Total Damage 3602 | . . . . . . 1945 1657 Kills 28 | . . . . . . 14 14 Allies Corrupted . | . . . . . . . . Allies Melted 2 | . . . . . . 1 1 Intel | -11 -10 -10 -9 -9 -7 -6 -6 ------- Run | Yrd Mat Min Mat Min Zio Pro Fac Active Infowar (turns) 2951 | . 219 112 67 . 397 1415 741 Decoding 2523 | . . . . . 397 1415 711 Jamming 711 | . . . . . . . 711 ECM 398 | . 219 112 67 . . . . Robot Analysis Total . | . . . . . . . . Derelict Logs Recovered 6 | . . 2 . . 2 2 . Drone Launches . | . . . . . . . . Drone Recoveries . | . . . . . . . . Decoded 0b10 Intel 43 | . . . . . . . 43 Items 42 | . . . . . . . 42 Exits 1 | . . . . . . . 1 Exploration | -11 -10 -10 -9 -9 -7 -6 -6 ------------- Run | Yrd Mat Min Mat Min Zio Pro Fac Turns Passed 4073 | 32 276 120 579 17 893 1415 741 Spaces Moved 3639 | 31 224 174 680 32 1196 709 593 Core 105 | 12 . . . . . 72 21 Treads . | . . . . . . . . Legs . | . . . . . . . . Wheels 224 | 19 205 . . . . . . Hover 2606 | . . . 169 32 1196 637 572 Flight 704 | . 19 174 511 . . . . Fastest Speed 34 | 50 37 37 34 52 52 52 52 Average Speed 61 | 68 76 37 39 52 52 92 71 Slowest Speed 450 | 80 80 37 120 52 52 450 250 Overloaded Moves . | . . . . . . . . Propulsion Burnouts . | . . . . . . . . Robots Hopped 1 | . . . 1 . . . . Potential Cave-ins . | . . . . . . . . Cave-ins Triggered . | . . . . . . . . Exploration Rate (%) 39 | 4 29 33 47 15 90 87 12 Regions Visited 7 Branch Regions 4 Pre-discovered Areas 2 | . . . . . 1 1 . Known Exits Taken . | . . . . . . . . Unknown Exits Taken 7 | 1 1 1 1 1 1 1 . Scrap Searched 8 | . . 1 . . 3 4 . Spaces Dug . | . . . . . . . . Terrain Destroyed . | . . . . . . . . Melee . | . . . . . . . . Projectile . | . . . . . . . . AOE . | . . . . . . . . Terrain Rammed . | . . . . . . . . Walls Destroyed . | . . . . . . . . Machines Disabled . | . . . . . . . . Actions | -11 -10 -10 -9 -9 -7 -6 -6 --------- Run | Yrd Mat Min Mat Min Zio Pro Fac Total 5361 | 42 304 227 927 31 1469 1474 887 Wait 1446 | . 45 29 161 . 227 733 251 Move 3630 | 30 223 173 677 31 1195 708 593 Hop 1 | . . . 1 . . . . Pick Up 80 | 6 12 8 13 . 19 12 10 Fast Attach . | . . . . . . . . Attach 42 | 5 3 3 16 . 4 . 11 Detach 5 | . 1 1 2 . . . 1 Swap 24 | . 2 2 4 . 9 5 2 Drop 46 | 1 5 7 4 . 15 12 2 Fire 50 | . 13 4 28 . . 2 3 Melee 33 | . . . 21 . . . 12 Ram 2 | . . . . . . . 2 Kick . | . . . . . . . . Crush . | . . . . . . . . Escape Stasis . | . . . . . . . . Rewire 2 | . . . . . . 2 . Trap . | . . . . . . . . Miscellaneous . | . . . . . . . . Route ------- -11/Scrapyard -10/Materials -10/Mines -9/Materials -9/Mines -7/Zion -6/Proximity Caves -6/Factory (discovered 1 exit: Low) History --------- Turn | Location | Event 11 | -11/Scrapyard | Discovered new exit (range 16) 33 | -11/Scrapyard | Entered Materials 231 | -10/Materials | Discovered new exit (range 8) 309 | -10/Materials | Entered Mines 335 | -10/Mines | Met a Derelict bent on vengeance 359 | -10/Mines | Build established: Mutant 368 | -10/Mines | Discovered new exit (range 9) 429 | -10/Mines | Entered Materials 429 | -9/Materials | Evolved 2 slots: Power x1, Propulsion x1 499 | -9/Materials | System corruption reached 10% 529 | -9/Materials | Lost 5 parts (2n2u1w) 813 | -9/Materials | Central database locked down 928 | -9/Materials | Discovered new exit (range 12) 1008 | -9/Materials | Entered Mines 1023 | -9/Mines | A Derelict revealed a hidden shortcut to a safe place 1025 | -9/Mines | Entered Zion 1099 | -7/Zion | System corruption cleaned by Quarantine Array 1117 | -7/Zion | Given the Hacking Drone Bay 1117 | -7/Zion | Found Prototype Device 1118 | -7/Zion | Identified Hacking Drone Bay 1179 | -7/Zion | Received a visual enhancement algorithm 1180 | -7/Zion | Ran a visual enhancement algorithm 1225 | -7/Zion | Ran a visual enhancement algorithm 1230 | -7/Zion | Ran a visual enhancement algorithm 1230 | -7/Zion | Ran a visual enhancement algorithm 1284 | -7/Zion | Learned Factory trap positions 1389 | -7/Zion | Given A8's code to call for help 1393 | -7/Zion | Acquired unknown access codes intercepted by a Zionite 1402 | -7/Zion | Learned Factory emergency access door positions 1455 | -7/Zion | Enhanced Grunt warped into view, answering call for help 1456 | -7/Zion | Enhanced Grunt warped into view, answering call for help 1482 | -7/Zion | Found Prototype Processor 1483 | -7/Zion | Identified Exp. Core Analyzer 1486 | -7/Zion | Found Prototype Processor 1487 | -7/Zion | Identified Exp. Target Analyzer 1510 | -7/Zion | Found Prototype Processor 1511 | -7/Zion | Identified Exp. Targeting Computer 1514 | -7/Zion | Found Prototype Hackware 1516 | -7/Zion | Identified Exp. Hacking Suite 1517 | -7/Zion | Found Prototype Processor 1518 | -7/Zion | Identified Exp. Terrain Scan Processor 1538 | -7/Zion | Visited the Megawrench Repair Shop 1538 | -7/Zion | Megawrench repaired 5 parts 1562 | -7/Zion | Learned Factory terminal intel 1598 | -7/Zion | Met Imprinter 1608 | -7/Zion | Imprinted 1610 | -7/Zion | Declared Zion's savior 1777 | -7/Zion | Discovered new exit (range 15) 1786 | -7/Zion | Gained Derelict followers 1918 | -7/Zion | Entered Proximity Caves 1918 | -6/Proximity Caves | Accompanied by 9 allies 1933 | -6/Proximity Caves | Learned Factory emergency access door positions 2033 | -6/Proximity Caves | P-60 Hacker assimilated allied U7-NX2(g) 2178 | -6/Proximity Caves | Attracted the attention of an 0b10 outpost 2226 | -6/Proximity Caves | Found Prototype Device 2339 | -6/Proximity Caves | Build established: Scavenger-Mutant 2443 | -6/Proximity Caves | Received a Behemoth hack from an annoying Tinkerer 2689 | -6/Proximity Caves | Found Prototype Device 3285 | -6/Proximity Caves | Discovered new exit (range 11) 3333 | -6/Proximity Caves | Entered Factory 3333 | -6/Factory | Accompanied by 7 allies 3333 | -6/Factory | Evolved 6 slots: Propulsion x1, Utility x4, Weapon x1 3334 | -6/Factory | Loaded intel: 118 trap records 3335 | -6/Factory | Identified Exp. Thermal Shield 3336 | -6/Factory | Loaded intel: 26 terminal locations 3381 | -6/Factory | Identified exit to Lower Caves 3592 | -6/Factory | Spotted B-75 Beast 3597 | -6/Factory | Befriended a Behemoth using the annoying Tinkerer's hack 3623 | -6/Factory | Lost 3 allies 3644 | -6/Factory | Build established: Derelict-Mutant 3919 | -6/Factory | Ran a visual enhancement algorithm 3995 | -6/Factory | Lost 5 parts (2p3u) 4055 | -6/Factory | Core integrity fell below 50% 4066 | -6/Factory | Core integrity fell below 20% 4074 | -6/Factory | Destroyed by P-60 Hacker with Shock Rifle Last Messages --------------- 04059_ Penetrated by Slug. 04059_ U-05 Engineer lays Concrete. 04061_ Power Maul destroyed. 04061_ K-01 Serf collects debris. 04062_ U-05 Engineer lays Concrete. 04062_ Penetrated by Slug. 04063_ K-01 Serf collects debris. 04065_ Slug penetrates Wall. 04066_ K-01 Serf collects debris. 04067_ Slammed into K-01 Serf. 04067_ Slug penetrates K-01 Serf. 04067_ K-01 Serf destroyed. 04068_ Slammed into K-01 Serf. 04068_ K-01 Serf collects debris. 04068_ Penetrated by Slug. 04068_ K-01 Serf destroyed. 04068_ Penetrated by Slug. 04071_ Acquired Wheel. 04072_ Slug penetrates Wall. 04073_ K-01 Serf collects debris. Map ----- +----------------------------------------------------+ | #?# #???????????????????????????????????????? | | ##### #???????????????????????????????????????? | | #???????????????????????????????????????? | | #???????????????????????????????????????? | | #???????????????????????????????????????? | | #???????????????????????????????????????? | | ## #???????????????????????????????????????? | | ?# ^^ #???????????????????????????????????????? | | ?# ^^ +???????????????????????????????????????? | | ?# ##### #???????????????????????????????????????? | | ?# #???# #???????????????????????????????????????? | | ?# #???# #??????????????!????????????????????????? | | ?# #???# #???????????????????????????????????????? | | ##+##### #???##########??????????????????????????? | | # #???# #??????????????????????????? | | # #???# """ #??????????????????????????? | | # ##### """ #??????????????????????????? | | # # """ #??????????????????????????? | | " # # #??????????????????????????? | | " " # !!! #?????????????????????+????? | | " " # + ! #??????????????????????????? | | % + # ! #??????????????????????????? | | " """ # # #??????????????????????????? | | " """ # ####################### ????????? | | " """ # h % p ????????? | | # %%=%%% @ ????????? | | ######## h * = k????????? | | ???????# % k ????????? | | ???????# u ?????????? | | ???????############################# ?????????? | | ?????????????????????????????????????????????????? | | ?????????????????????????????????????????????????? | | ?????????????????????????????????????????????????? | | ?????????????????????????????????????????????????? | | ?????????????????????????????????????????????????? | | ?????????????????????????????????????????????????? | | ?????????????????????????????????????????????????? | | ?????????????????????????????????????????????????? | | ?????????????????????????????????????????????????? | | ?????????????????????????????????????????????????? | | ?????????????????????????????????????????????????? | | ?????????????????????????????????????????????????? | | ?????????????????????????????????????????????????? | | ?????????????????????????????????????????????????? | | ?????????????????????????????????????????????????? | | ?????????????????????????????????????????????????? | | ?????????????????????????????????????????????????? | | ??????????????????????^???????^??????????????????? | | ?????????????????????????????????????????????????? | | ???????????????????????^???^?????????????????????? | +----------------------------------------------------+ Best States ------------- Heat Dissipation 42 Energy Generation 31 Energy Capacity 460 Matter Stores 300 Matter Capacity 300 Sight Range 16 Terrain Scan Density 110 ECM Strength 1 Jamming Range 14 Weapon Cycling 15 Phase Shifting 5 Evasion (%) 63 Targeting Accuracy 5 Core Analysis 9 Offensive Hacking 16 Authchip Count 4 Item Schematics ----------------- Ion Engine | -9/Materials | Scanalyzed Riot Gun | -7/Zion | Free Battle Cannon | -7/Zion | Free Bore Cannon | -7/Zion | Free Hvy. Machine Gun | -7/Zion | Archive EM Disruption Field | -7/Zion | Archive Coolant Injector | -7/Zion | Archive Imp. Core Shielding | -7/Zion | Archive Point Defense System | -7/Zion | Archive Arc Projector | -7/Zion | Archive Imp. Target Analyzer | -7/Zion | Archive Flak Gun | -7/Zion | Archive Phase Shifter | -7/Zion | Archive Imp. Cooling System | -7/Zion | Archive Phase Cannon | -7/Zion | Archive Gatling Laser | -7/Zion | Archive Hvy. Flak Cannon | -7/Zion | Archive Imp. Shield Generator | -7/Zion | Archive Imp. Focal Shield | -7/Zion | Archive Robot Schematics ------------------ K-01 Serf | -7/Zion | Archive L-31 Rogue | -7/Zion | Archive L-41 Fighter | -7/Zion | Archive Fabricated ------------ Nothing Repaired ---------- Nothing Studied --------- Flight Unit | -9/Materials | Hacked Ion Engine | -9/Materials | Hacked Alien Tech Used ----------------- None Achievements -------------- Help From High Places Look Less Dangerous Next Time The One Woof! Challenges ------------ None Game ------ Seed GreatLargeWings Manual? 0 Play Time 01:00:30 Cumulative 20.5 hours Start 2026.04.13 @ 17:02:15 End 2026.04.13 @ 18:02:08 Sessions 1 Manual Loads 0 Difficulty Rogue Special Mode None Game No. 36 Rogue 33 Adventurer 3 Explorer 0 Win Type - Total 1 Types 1/0/0/0/0/0/0/0/0/0 Lore% 23 Gallery% 20 Achievement% 22 Wizard Run 0 Options --------- Layout 1 ASCII 0 Keyboard 0 Movement Numpad Keybinds 0 Fullscreen 2 Font 24/Proggy Map View 50x35 Zoom Use 0% Tactical HUD 1 Map Filters NONE Filters NONE Steam 1 RUN: dbff9579-a14b-4819-9470-23578097915c